[Event "Titled Tuesday Blitz May 23 Late 2023"]
[White "Adewumi, Tanitoluwa"]
[Black "Panesar Vedant"]
[WhiteFideId "30966396"]
[BlackFideId "35033018"]
[WhiteElo "2572"]
[BlackElo "2347"]
[Result "0-1"]
[Round "06"]
[TimeControl "180+2"]
[Date "2023.05.23"]
[WhiteClock "0:00:01"]
[BlackClock "0:00:21"]

1. e4 {[%clk 0:02:52]}  e5 {[%clk 0:03:00]} 2. Nf3 {[%clk 0:02:51]}  Nc6 {[%clk 0:03:00]} 3. Bc4 {[%clk 0:02:51]}  Nf6 {[%clk 0:03:00]} 4. d3 {[%clk 0:02:51]}  Bc5 {[%clk 0:03:00]} 5. O-O {[%clk 0:02:46]}  a6 {[%clk 0:02:58]} 6. a4 {[%clk 0:02:41]}  d6 {[%clk 0:02:58]} 7. h3 {[%clk 0:02:37]}  h6 {[%clk 0:02:57]} 8. Re1 {[%clk 0:02:37]}  g5 {[%clk 0:02:57]} 9. Be3 {[%clk 0:02:11]}  g4 {[%clk 0:02:56]} 10. hxg4 {[%clk 0:02:08]}  Bxg4 {[%clk 0:02:48]} 11. Bxc5 {[%clk 0:02:06]}  dxc5 {[%clk 0:02:48]} 12. c3 {[%clk 0:02:05]}  Qe7 {[%clk 0:02:44]} 13. Nbd2 {[%clk 0:01:58]}  Rg8 {[%clk 0:02:37]} 14. Nf1 {[%clk 0:01:55]}  O-O-O {[%clk 0:02:33]} 15. Ne3 {[%clk 0:01:47]}  h5 {[%clk 0:02:30]} 16. a5 {[%clk 0:01:35]}  h4 {[%clk 0:02:28]} 17. Kh1 {[%clk 0:01:04]}  h3 {[%clk 0:02:18]} 18. g3 {[%clk 0:01:02]}  Bh5 {[%clk 0:02:18]} 19. Nf5 {[%clk 0:00:48]}  Qf8 {[%clk 0:02:16]} 20. Qe2 {[%clk 0:00:43]}  Ng4 {[%clk 0:02:04]} 21. N3h4 {[%clk 0:00:20]}  Ne7 {[%clk 0:02:01]} 22. Qf3 {[%clk 0:00:12]}  Kb8 {[%clk 0:01:56]} 23. Nxe7 {[%clk 0:00:11]}  Qxe7 {[%clk 0:01:56]} 24. Nf5 {[%clk 0:00:11]}  Qf6 {[%clk 0:01:55]} 25. Qe2 {[%clk 0:00:07]}  Rh8 {[%clk 0:01:53]} 26. Rab1 {[%clk 0:00:06]}  Nh2 {[%clk 0:01:46]} 27. Qe3 {[%clk 0:00:05]}  Nf3 {[%clk 0:01:45]} 28. Rf1 {[%clk 0:00:04]}  Bg4 {[%clk 0:01:43]} 29. b4 {[%clk 0:00:03]}  Bxf5 {[%clk 0:01:27]} 30. Qxf3 {[%clk 0:00:03]}  cxb4 {[%clk 0:01:12]} 31. exf5 {[%clk 0:00:02]}  e4 {[%clk 0:01:02]} 32. Qxe4 {[%clk 0:00:02]}  Rhe8 {[%clk 0:01:02]} 33. Qf3 {[%clk 0:00:02]}  Qxc3 {[%clk 0:01:02]} 34. Rb3 {[%clk 0:00:02]}  Qd2 {[%clk 0:01:01]} 35. Rfb1 {[%clk 0:00:01]}  Re1+ {[%clk 0:00:58]} 36. Rxe1 {[%clk 0:00:02]}  Qxe1+ {[%clk 0:00:59]} 37. Kh2 {[%clk 0:00:03]}  Re8 {[%clk 0:00:58]} 38. f6 {[%clk 0:00:02]}  Re2 {[%clk 0:00:57]} 39. Kxh3 {[%clk 0:00:03]}  Rxf2 {[%clk 0:00:55]} 40. Qe4 {[%clk 0:00:04]}  Qf1+ {[%clk 0:00:52]} 41. Kg4 {[%clk 0:00:03]}  Qd1+ {[%clk 0:00:47]} 42. Kg5 {[%clk 0:00:04]}  Qd2+ {[%clk 0:00:47]} 43. Kh5 {[%clk 0:00:04]}  Rh2+ {[%clk 0:00:36]} 44. Kg4 {[%clk 0:00:04]}  Qd1+ {[%clk 0:00:36]} 45. Qf3 {[%clk 0:00:04]}  Qe1 {[%clk 0:00:30]} 46. Qe4 {[%clk 0:00:03]}  Re2 {[%clk 0:00:29]} 47. Qf3 {[%clk 0:00:03]}  Re3 {[%clk 0:00:28]} 48. Qf4 {[%clk 0:00:02]}  Qe2+ {[%clk 0:00:29]} 49. Kh4 {[%clk 0:00:02]}  Re5 {[%clk 0:00:27]} 50. g4 {[%clk 0:00:01]}  Qe1+ {[%clk 0:00:26]} 51. Qg3 {[%clk 0:00:02]}  Qh1+ {[%clk 0:00:25]} 52. Qh3 {[%clk 0:00:02]}  Qe1+ {[%clk 0:00:25]} 53. Qg3 {[%clk 0:00:03]}  Qh1+ {[%clk 0:00:21]} 54. Qh3 {[%clk 0:00:02]}  Qc6 {[%clk 0:00:21]} 55. Rxb4 {[%clk 0:00:02]}  Qxf6+ {[%clk 0:00:21]} 56. g5 {[%clk 0:00:01]}  Qxg5# {[%clk 0:00:21]} 0-1


[Site "https://www.chess.com"]

[Event "Titled Tuesday Blitz May 23 Late 2023"]
[White "Potapova, Margarita"]
[Black "Rozman, Levy"]
[WhiteFideId "14126869"]
[BlackFideId "2039877"]
[WhiteElo "2244"]
[BlackElo "2376"]
[Result "1-0"]
[Round "06"]
[TimeControl "180+2"]
[Date "2023.05.23"]
[WhiteClock "0:00:31"]
[BlackClock "0:00:01"]

1. d4 {[%clk 0:03:00]}  d5 {[%clk 0:02:52]} 2. c4 {[%clk 0:03:00]}  e6 {[%clk 0:02:50]} 3. Nc3 {[%clk 0:03:00]}  a6 {[%clk 0:02:50]} 4. cxd5 {[%clk 0:02:59]}  exd5 {[%clk 0:02:51]} 5. Nf3 {[%clk 0:02:59]}  Nf6 {[%clk 0:02:50]} 6. Bg5 {[%clk 0:03:00]}  c6 {[%clk 0:02:48]} 7. Bxf6 {[%clk 0:03:00]}  Qxf6 {[%clk 0:02:47]} 8. e3 {[%clk 0:03:00]}  Bd6 {[%clk 0:02:45]} 9. Be2 {[%clk 0:02:59]}  O-O {[%clk 0:02:45]} 10. O-O {[%clk 0:03:00]}  Re8 {[%clk 0:02:43]} 11. h3 {[%clk 0:02:59]}  Bf5 {[%clk 0:02:40]} 12. Bd3 {[%clk 0:02:58]}  Nd7 {[%clk 0:02:38]} 13. Re1 {[%clk 0:02:57]}  Re7 {[%clk 0:02:29]} 14. Qc2 {[%clk 0:02:56]}  Bxd3 {[%clk 0:02:27]} 15. Qxd3 {[%clk 0:02:57]}  Rae8 {[%clk 0:02:28]} 16. a3 {[%clk 0:02:56]}  g6 {[%clk 0:02:05]} 17. Nd2 {[%clk 0:02:55]}  Qh4 {[%clk 0:02:03]} 18. Nf3 {[%clk 0:02:52]}  Qh5 {[%clk 0:01:59]} 19. b4 {[%clk 0:02:51]}  f5 {[%clk 0:01:58]} 20. Rab1 {[%clk 0:02:50]}  b5 {[%clk 0:01:50]} 21. a4 {[%clk 0:02:49]}  Nb6 {[%clk 0:01:50]} 22. Nd2 {[%clk 0:02:41]}  Nc4 {[%clk 0:01:32]} 23. Nxc4 {[%clk 0:02:34]}  dxc4 {[%clk 0:01:31]} 24. Qd2 {[%clk 0:02:29]}  f4 {[%clk 0:01:16]} 25. e4 {[%clk 0:02:27]}  f3 {[%clk 0:01:03]} 26. e5 {[%clk 0:02:18]}  fxg2 {[%clk 0:01:03]} 27. Kxg2 {[%clk 0:01:56]}  Bc7 {[%clk 0:00:59]} 28. Ne4 {[%clk 0:01:56]}  Bxe5 {[%clk 0:00:52]} 29. dxe5 {[%clk 0:01:54]}  Qxe5 {[%clk 0:00:52]} 30. axb5 {[%clk 0:01:46]}  axb5 {[%clk 0:00:50]} 31. Re3 {[%clk 0:01:31]}  Qf5 {[%clk 0:00:36]} 32. f3 {[%clk 0:01:16]}  Re6 {[%clk 0:00:25]} 33. Rbe1 {[%clk 0:01:13]}  Kg7 {[%clk 0:00:23]} 34. R1e2 {[%clk 0:00:47]}  Qe5 {[%clk 0:00:18]} 35. h4 {[%clk 0:00:44]}  Qf4 {[%clk 0:00:17]} 36. Qd7+ {[%clk 0:00:41]}  R8e7 {[%clk 0:00:16]} 37. Qd4+ {[%clk 0:00:41]}  Kh6 {[%clk 0:00:14]} 38. Re1 {[%clk 0:00:37]}  Ra7 {[%clk 0:00:09]} 39. Qxa7 {[%clk 0:00:36]}  Qe5 {[%clk 0:00:03]} 40. Nf2 {[%clk 0:00:32]}  Qd4 {[%clk 0:00:01]} 41. Qxd4 {[%clk 0:00:31]} 1-0


[Site "https://www.chess.com"]

[Event "Titled Tuesday Blitz May 23 Late 2023"]
[White "Chylewski, Patryk"]
[Black "Sethuraman, S.P."]
[WhiteFideId "1186191"]
[BlackFideId "5021596"]
[WhiteElo "2163"]
[BlackElo "2543"]
[Result "0-1"]
[Round "06"]
[TimeControl "180+2"]
[Date "2023.05.23"]
[WhiteClock "0:00:01"]
[BlackClock "0:00:12"]

1. e4 {[%clk 0:03:00]}  a6 {[%clk 0:02:59]} 2. d4 {[%clk 0:02:58]}  d6 {[%clk 0:02:59]} 3. Be3 {[%clk 0:02:46]}  g6 {[%clk 0:02:59]} 4. Nc3 {[%clk 0:02:45]}  Bg7 {[%clk 0:02:59]} 5. a4 {[%clk 0:02:44]}  Nf6 {[%clk 0:02:58]} 6. h3 {[%clk 0:02:44]}  O-O {[%clk 0:02:58]} 7. g4 {[%clk 0:02:44]}  e5 {[%clk 0:02:49]} 8. Bg2 {[%clk 0:02:44]}  Nc6 {[%clk 0:02:49]} 9. Nge2 {[%clk 0:02:41]}  Bd7 {[%clk 0:02:48]} 10. O-O {[%clk 0:02:41]}  h5 {[%clk 0:02:43]} 11. g5 {[%clk 0:02:41]}  Nh7 {[%clk 0:02:42]} 12. h4 {[%clk 0:02:40]}  f6 {[%clk 0:02:27]} 13. d5 {[%clk 0:01:35]}  Ne7 {[%clk 0:02:23]} 14. Qd2 {[%clk 0:01:27]}  fxg5 {[%clk 0:02:21]} 15. hxg5 {[%clk 0:01:28]}  Qc8 {[%clk 0:02:02]} 16. Kh2 {[%clk 0:01:26]}  Rf7 {[%clk 0:01:53]} 17. Ng1 {[%clk 0:01:02]}  Nf8 {[%clk 0:01:50]} 18. Bh3 {[%clk 0:01:00]}  Bxh3 {[%clk 0:01:49]} 19. Nxh3 {[%clk 0:01:01]}  Nd7 {[%clk 0:01:49]} 20. a5 {[%clk 0:00:44]}  Qf8 {[%clk 0:01:45]} 21. Qe2 {[%clk 0:00:41]}  Rc8 {[%clk 0:01:43]} 22. f3 {[%clk 0:00:41]}  c6 {[%clk 0:01:17]} 23. Rad1 {[%clk 0:00:36]}  cxd5 {[%clk 0:01:13]} 24. Nxd5 {[%clk 0:00:33]}  Nxd5 {[%clk 0:01:10]} 25. Rxd5 {[%clk 0:00:34]}  Qe7 {[%clk 0:01:11]} 26. c3 {[%clk 0:00:30]}  Qe6 {[%clk 0:01:09]} 27. Rfd1 {[%clk 0:00:26]}  Bf8 {[%clk 0:01:09]} 28. Qg2 {[%clk 0:00:20]}  Be7 {[%clk 0:01:08]} 29. Ng1 {[%clk 0:00:19]}  Nf8 {[%clk 0:01:06]} 30. Qh3 {[%clk 0:00:18]}  Qxh3+ {[%clk 0:01:06]} 31. Kxh3 {[%clk 0:00:19]}  Ne6 {[%clk 0:01:06]} 32. Kg2 {[%clk 0:00:17]}  Rcf8 {[%clk 0:00:52]} 33. Rf1 {[%clk 0:00:12]}  Rd8 {[%clk 0:00:35]} 34. Nh3 {[%clk 0:00:11]}  Kg7 {[%clk 0:00:35]} 35. Rfd1 {[%clk 0:00:11]}  Re8 {[%clk 0:00:34]} 36. R1d3 {[%clk 0:00:10]}  Ref8 {[%clk 0:00:35]} 37. Bc1 {[%clk 0:00:07]}  Nc5 {[%clk 0:00:33]} 38. Re3 {[%clk 0:00:07]}  Ne6 {[%clk 0:00:30]} 39. Red3 {[%clk 0:00:05]}  Rc8 {[%clk 0:00:29]} 40. Be3 {[%clk 0:00:05]}  Kf8 {[%clk 0:00:27]} 41. Rd1 {[%clk 0:00:05]}  Ke8 {[%clk 0:00:27]} 42. R1d2 {[%clk 0:00:04]}  Rc6 {[%clk 0:00:21]} 43. Rd1 {[%clk 0:00:04]}  Nc7 {[%clk 0:00:20]} 44. R5d3 {[%clk 0:00:03]}  Kd7 {[%clk 0:00:20]} 45. R1d2 {[%clk 0:00:01]}  Ne6 {[%clk 0:00:20]} 46. Rd1 {[%clk 0:00:01]}  Rc8 {[%clk 0:00:19]} 47. Rd5 {[%clk 0:00:02]}  Kc6 {[%clk 0:00:19]} 48. R5d3 {[%clk 0:00:02]}  Rcf8 {[%clk 0:00:19]} 49. Rf1 {[%clk 0:00:01]}  Nc7 {[%clk 0:00:18]} 50. Rd2 {[%clk 0:00:02]}  Ne6 {[%clk 0:00:17]} 51. Rd3 {[%clk 0:00:02]}  h4 {[%clk 0:00:18]} 52. Rd2 {[%clk 0:00:02]}  Bd8 {[%clk 0:00:15]} 53. b4 {[%clk 0:00:01]}  Be7 {[%clk 0:00:15]} 54. c4 {[%clk 0:00:02]}  Rc8 {[%clk 0:00:15]} 55. Rb2 {[%clk 0:00:02]}  Kd7 {[%clk 0:00:15]} 56. Rc2 {[%clk 0:00:02]}  Ke8 {[%clk 0:00:15]} 57. Rd1 {[%clk 0:00:03]}  Bf8 {[%clk 0:00:15]} 58. Rdd2 {[%clk 0:00:03]}  Rfc7 {[%clk 0:00:15]} 59. c5 {[%clk 0:00:01]}  dxc5 {[%clk 0:00:16]} 60. Rd5 {[%clk 0:00:01]}  cxb4 {[%clk 0:00:15]} 61. Rxc7 {[%clk 0:00:01]}  Rxc7 {[%clk 0:00:16]} 62. Rxe5 {[%clk 0:00:02]}  Kf7 {[%clk 0:00:16]} 63. f4 {[%clk 0:00:02]}  b3 {[%clk 0:00:16]} 64. f5 {[%clk 0:00:03]}  Nc5 {[%clk 0:00:15]} 65. fxg6+ {[%clk 0:00:02]}  Kg8 {[%clk 0:00:15]} 66. Bxc5 {[%clk 0:00:01]}  Rxc5 {[%clk 0:00:14]} 67. Rf5 {[%clk 0:00:01]}  b2 {[%clk 0:00:12]} 68. Rxc5 {[%clk 0:00:01]} 0-1


[Site "https://www.chess.com"]

[Event "Titled Tuesday Blitz May 23 Late 2023"]
[White "Matinian, Nikita"]
[Black "Tologon tegin, Semetei"]
[WhiteFideId "24129100"]
[BlackFideId "13800574"]
[WhiteElo "2422"]
[BlackElo "2247"]
[Result "1-0"]
[Round "06"]
[TimeControl "180+2"]
[Date "2023.05.23"]
[WhiteClock "0:01:39"]
[BlackClock "0:02:20"]

1. e4 {[%clk 0:03:00]}  c5 {[%clk 0:02:59]} 2. Nf3 {[%clk 0:03:00]}  d6 {[%clk 0:03:00]} 3. d4 {[%clk 0:03:01]}  cxd4 {[%clk 0:03:00]} 4. Nxd4 {[%clk 0:03:02]}  Nf6 {[%clk 0:03:01]} 5. Nc3 {[%clk 0:03:02]}  a6 {[%clk 0:03:01]} 6. h3 {[%clk 0:03:01]}  e5 {[%clk 0:02:59]} 7. Nb3 {[%clk 0:03:00]}  b5 {[%clk 0:02:58]} 8. a4 {[%clk 0:02:53]}  b4 {[%clk 0:02:56]} 9. Nd5 {[%clk 0:02:53]}  Nxd5 {[%clk 0:02:53]} 10. Qxd5 {[%clk 0:02:52]}  Ra7 {[%clk 0:02:54]} 11. Be3 {[%clk 0:02:51]}  Rd7 {[%clk 0:02:47]} 12. a5 {[%clk 0:02:40]}  Bb7 {[%clk 0:02:43]} 13. Qd2 {[%clk 0:02:40]}  Bxe4 {[%clk 0:02:39]} 14. Qxb4 {[%clk 0:02:02]}  Bxc2 {[%clk 0:02:37]} 15. Rc1 {[%clk 0:02:00]}  Bxb3 {[%clk 0:02:33]} 16. Bb6 {[%clk 0:01:50]}  d5 {[%clk 0:02:32]} 17. Qxb3 {[%clk 0:01:46]}  Rb7 {[%clk 0:02:24]} 18. Bb5+ {[%clk 0:01:42]}  axb5 {[%clk 0:02:21]} 19. Bxd8 {[%clk 0:01:40]}  Kxd8 {[%clk 0:02:20]} 20. Qxd5+ {[%clk 0:01:39]} 1-0


[Site "https://www.chess.com"]

[Event "Titled Tuesday Blitz May 23 Late 2023"]
[White "Gritsenko, Nikolai"]
[Black "Reprintsev, Alexander"]
[WhiteFideId "14112493"]
[BlackFideId "14100541"]
[WhiteElo "2389"]
[BlackElo "2218"]
[Result "1-0"]
[Round "06"]
[TimeControl "180+2"]
[Date "2023.05.23"]
[WhiteClock "0:00:24"]
[BlackClock "0:00:05"]

1. d4 {[%clk 0:03:00]}  d5 {[%clk 0:02:42]} 2. Bg5 {[%clk 0:02:58]}  Nc6 {[%clk 0:02:42]} 3. e3 {[%clk 0:02:58]}  f6 {[%clk 0:02:42]} 4. Bh4 {[%clk 0:02:57]}  Nh6 {[%clk 0:02:42]} 5. Bd3 {[%clk 0:02:57]}  Nf5 {[%clk 0:02:41]} 6. Bg3 {[%clk 0:02:47]}  h5 {[%clk 0:02:40]} 7. Bxf5 {[%clk 0:02:43]}  Bxf5 {[%clk 0:02:39]} 8. h3 {[%clk 0:02:43]}  e6 {[%clk 0:02:38]} 9. a3 {[%clk 0:02:39]}  Bd6 {[%clk 0:02:38]} 10. Bxd6 {[%clk 0:02:38]}  Qxd6 {[%clk 0:02:39]} 11. Ne2 {[%clk 0:02:36]}  O-O-O {[%clk 0:02:38]} 12. Nbc3 {[%clk 0:02:36]}  e5 {[%clk 0:02:36]} 13. Qd2 {[%clk 0:02:36]}  exd4 {[%clk 0:02:31]} 14. Nxd4 {[%clk 0:02:35]}  Nxd4 {[%clk 0:02:31]} 15. Qxd4 {[%clk 0:02:35]}  c5 {[%clk 0:02:29]} 16. Qa4 {[%clk 0:02:34]}  a6 {[%clk 0:02:21]} 17. O-O-O {[%clk 0:02:30]}  Bd7 {[%clk 0:02:01]} 18. Qa5 {[%clk 0:02:09]}  Bc6 {[%clk 0:01:58]} 19. Ne4 {[%clk 0:01:49]}  Qe5 {[%clk 0:01:27]} 20. Nxc5 {[%clk 0:01:44]}  d4 {[%clk 0:01:26]} 21. exd4 {[%clk 0:01:30]}  Rxd4 {[%clk 0:01:26]} 22. Rxd4 {[%clk 0:01:26]}  Qxd4 {[%clk 0:01:26]} 23. Rd1 {[%clk 0:01:10]}  Qxf2 {[%clk 0:01:18]} 24. b4 {[%clk 0:00:57]}  Qxg2 {[%clk 0:01:02]} 25. Qb6 {[%clk 0:00:51]}  Qxh3 {[%clk 0:00:52]} 26. Kb2 {[%clk 0:00:40]}  Qf3 {[%clk 0:00:47]} 27. Rd3 {[%clk 0:00:33]}  Qg2 {[%clk 0:00:33]} 28. Rc3 {[%clk 0:00:33]}  Qd5 {[%clk 0:00:17]} 29. Nxa6 {[%clk 0:00:30]}  Qd6 {[%clk 0:00:13]} 30. b5 {[%clk 0:00:27]}  h4 {[%clk 0:00:05]} 31. bxc6 {[%clk 0:00:24]} 1-0


[Site "https://www.chess.com"]

[Event "Titled Tuesday Blitz May 23 Late 2023"]
[White "benny_aizenberg"]
[Black "Kisic, Bozidar"]
[BlackFideId "16500350"]
[WhiteElo "2695"]
[BlackElo "2234"]
[Result "1-0"]
[Round "06"]
[TimeControl "180+2"]
[Date "2023.05.23"]
[WhiteClock "0:00:10"]
[BlackClock "0:00:00"]

1. f4 {[%clk 0:03:00]}  g6 {[%clk 0:02:50]} 2. e4 {[%clk 0:03:00]}  d5 {[%clk 0:02:48]} 3. e5 {[%clk 0:03:00]}  c5 {[%clk 0:02:44]} 4. Nf3 {[%clk 0:02:56]}  Nc6 {[%clk 0:02:44]} 5. Be2 {[%clk 0:02:50]}  f6 {[%clk 0:02:41]} 6. O-O {[%clk 0:02:50]}  Bg7 {[%clk 0:02:41]} 7. d4 {[%clk 0:02:48]}  cxd4 {[%clk 0:02:39]} 8. Nxd4 {[%clk 0:02:48]}  Nh6 {[%clk 0:02:32]} 9. c4 {[%clk 0:02:11]}  O-O {[%clk 0:02:14]} 10. Nc3 {[%clk 0:02:03]}  fxe5 {[%clk 0:01:47]} 11. Nxc6 {[%clk 0:01:57]}  bxc6 {[%clk 0:01:44]} 12. cxd5 {[%clk 0:01:57]}  Nf5 {[%clk 0:01:17]} 13. dxc6 {[%clk 0:01:54]}  Nd4 {[%clk 0:01:12]} 14. Be3 {[%clk 0:01:48]}  Bf5 {[%clk 0:00:53]} 15. fxe5 {[%clk 0:01:38]}  Nxc6 {[%clk 0:00:50]} 16. Bf3 {[%clk 0:01:19]}  Rc8 {[%clk 0:00:49]} 17. Bxc6 {[%clk 0:00:53]}  Rxc6 {[%clk 0:00:48]} 18. Qd5+ {[%clk 0:00:53]}  Qxd5 {[%clk 0:00:43]} 19. Nxd5 {[%clk 0:00:53]}  Re6 {[%clk 0:00:33]} 20. Bg5 {[%clk 0:00:49]}  Bxe5 {[%clk 0:00:28]} 21. Nxe7+ {[%clk 0:00:47]}  Kg7 {[%clk 0:00:28]} 22. Nxf5+ {[%clk 0:00:42]}  gxf5 {[%clk 0:00:29]} 23. Rad1 {[%clk 0:00:42]}  Bxb2 {[%clk 0:00:28]} 24. Rd7+ {[%clk 0:00:41]}  Kg6 {[%clk 0:00:28]} 25. h4 {[%clk 0:00:37]}  h6 {[%clk 0:00:27]} 26. Bf4 {[%clk 0:00:33]}  Rg8 {[%clk 0:00:26]} 27. Kh2 {[%clk 0:00:32]}  Kh5 {[%clk 0:00:26]} 28. Kh3 {[%clk 0:00:28]}  Re2 {[%clk 0:00:23]} 29. Rd6 {[%clk 0:00:24]}  Rg6 {[%clk 0:00:20]} 30. g3 {[%clk 0:00:16]}  Bf6 {[%clk 0:00:17]} 31. Rd5 {[%clk 0:00:16]}  Rg8 {[%clk 0:00:10]} 32. Rxf5+ {[%clk 0:00:14]}  Kg6 {[%clk 0:00:11]} 33. Bxh6 {[%clk 0:00:13]}  Bxh4 {[%clk 0:00:09]} 34. Kxh4 {[%clk 0:00:11]}  Kxh6 {[%clk 0:00:09]} 35. Rh5+ {[%clk 0:00:10]}  Kg6 {[%clk 0:00:08]} 36. Rg5+ {[%clk 0:00:11]}  Kh7 {[%clk 0:00:05]} 37. Rf7+ {[%clk 0:00:10]}  Kh6 {[%clk 0:00:02]} 38. Rxg8 {[%clk 0:00:10]}  Rh2+ {[%clk 0:00:00]} 39. Kg4 {[%clk 0:00:10]} 1-0


[Site "https://www.chess.com"]

[Event "Titled Tuesday Blitz May 23 Late 2023"]
[White "Sivakumar, Shaaketh"]
[Black "Goltsev, Dmitry"]
[WhiteFideId "30940176"]
[BlackFideId "24176710"]
[WhiteElo "2174"]
[BlackElo "2356"]
[Result "0-1"]
[Round "06"]
[TimeControl "180+2"]
[Date "2023.05.23"]
[WhiteClock "0:01:57"]
[BlackClock "0:01:37"]

1. e4 {[%clk 0:03:00]}  e6 {[%clk 0:03:00]} 2. d4 {[%clk 0:03:00]}  d5 {[%clk 0:03:01]} 3. Nd2 {[%clk 0:02:59]}  c5 {[%clk 0:03:01]} 4. c3 {[%clk 0:02:59]}  Nf6 {[%clk 0:03:01]} 5. e5 {[%clk 0:02:58]}  Ne4 {[%clk 0:03:00]} 6. Bd3 {[%clk 0:02:54]}  Nxd2 {[%clk 0:02:58]} 7. Bxd2 {[%clk 0:02:55]}  cxd4 {[%clk 0:02:57]} 8. cxd4 {[%clk 0:02:56]}  Nc6 {[%clk 0:02:57]} 9. Nf3 {[%clk 0:02:56]}  Be7 {[%clk 0:02:53]} 10. h4 {[%clk 0:02:54]}  Bd7 {[%clk 0:02:51]} 11. Qe2 {[%clk 0:02:54]}  Qb6 {[%clk 0:02:50]} 12. Be3 {[%clk 0:02:51]}  Nb4 {[%clk 0:02:43]} 13. Bb1 {[%clk 0:02:50]}  Bb5 {[%clk 0:02:41]} 14. Qd2 {[%clk 0:02:48]}  Rc8 {[%clk 0:02:38]} 15. a3 {[%clk 0:02:45]}  Qa5 {[%clk 0:02:38]} 16. Bg5 {[%clk 0:02:05]}  Rc1+ {[%clk 0:02:36]} 17. Qxc1 {[%clk 0:02:02]}  Nd3+ {[%clk 0:02:36]} 18. Kd1 {[%clk 0:02:02]}  Nxf2+ {[%clk 0:02:07]} 19. Kc2 {[%clk 0:01:58]}  Bd3+ {[%clk 0:01:50]} 20. Kb3 {[%clk 0:01:57]}  Bc4+ {[%clk 0:01:49]} 21. Kc2 {[%clk 0:01:57]}  Bd3+ {[%clk 0:01:41]} 22. Kb3 {[%clk 0:01:56]}  Qb5+ {[%clk 0:01:41]} 23. Kc3 {[%clk 0:01:57]}  Ne4# {[%clk 0:01:37]} 0-1


[Site "https://www.chess.com"]

[Event "Titled Tuesday Blitz May 23 Late 2023"]
[White "Liu, Casper"]
[Black "Alex_Sahakyan2006"]
[WhiteFideId "1454153"]
[WhiteElo "2221"]
[BlackElo "2679"]
[Result "0-1"]
[Round "06"]
[TimeControl "180+2"]
[Date "2023.05.23"]
[WhiteClock "0:00:43"]
[BlackClock "0:00:27"]

1. d4 {[%clk 0:03:00]}  Nf6 {[%clk 0:02:59]} 2. Bf4 {[%clk 0:03:01]}  c5 {[%clk 0:02:38]} 3. e3 {[%clk 0:03:01]}  Qb6 {[%clk 0:02:34]} 4. Na3 {[%clk 0:03:01]}  d5 {[%clk 0:02:28]} 5. Nb5 {[%clk 0:03:01]}  Na6 {[%clk 0:02:28]} 6. c3 {[%clk 0:03:02]}  Bd7 {[%clk 0:02:26]} 7. a4 {[%clk 0:03:01]}  e6 {[%clk 0:02:14]} 8. h3 {[%clk 0:03:01]}  Be7 {[%clk 0:02:11]} 9. Nf3 {[%clk 0:02:50]}  c4 {[%clk 0:02:05]} 10. b3 {[%clk 0:02:35]}  Qa5 {[%clk 0:01:46]} 11. bxc4 {[%clk 0:02:25]}  Bxb5 {[%clk 0:01:39]} 12. axb5 {[%clk 0:01:50]}  Qxc3+ {[%clk 0:01:37]} 13. Nd2 {[%clk 0:01:51]}  Nb4 {[%clk 0:01:12]} 14. Rc1 {[%clk 0:01:50]}  Nd3+ {[%clk 0:01:04]} 15. Bxd3 {[%clk 0:01:50]}  Qxd3 {[%clk 0:01:05]} 16. Qb3 {[%clk 0:01:51]}  Qxb3 {[%clk 0:01:02]} 17. Nxb3 {[%clk 0:01:52]}  dxc4 {[%clk 0:00:56]} 18. Rxc4 {[%clk 0:01:53]}  Nd5 {[%clk 0:00:56]} 19. Be5 {[%clk 0:01:31]}  f6 {[%clk 0:00:54]} 20. Bg3 {[%clk 0:01:30]}  a5 {[%clk 0:00:46]} 21. Ke2 {[%clk 0:00:54]}  a4 {[%clk 0:00:33]} 22. Ra1 {[%clk 0:00:54]}  Nb6 {[%clk 0:00:32]} 23. Rc7 {[%clk 0:00:47]}  axb3 {[%clk 0:00:31]} 24. Rxa8+ {[%clk 0:00:40]}  Nxa8 {[%clk 0:00:32]} 25. Rc8+ {[%clk 0:00:41]}  Kd7 {[%clk 0:00:28]} 26. Rxh8 {[%clk 0:00:41]}  b2 {[%clk 0:00:28]} 27. Rxa8 {[%clk 0:00:42]}  b1=Q {[%clk 0:00:28]} 28. Rb8 {[%clk 0:00:43]}  Qxb5+ {[%clk 0:00:28]} 29. Kf3 {[%clk 0:00:44]}  Qh5+ {[%clk 0:00:27]} 30. Ke4 {[%clk 0:00:43]}  Qf5# {[%clk 0:00:27]} 0-1


[Site "https://www.chess.com"]

[Event "Titled Tuesday Blitz May 23 Late 2023"]
[White "Deviprasath, Sharvesh"]
[Black "Prohaszka, Peter"]
[WhiteFideId "30938228"]
[BlackFideId "726265"]
[WhiteElo "2168"]
[BlackElo "2626"]
[Result "0-1"]
[Round "06"]
[TimeControl "180+2"]
[Date "2023.05.23"]
[WhiteClock "0:02:05"]
[BlackClock "0:00:35"]

1. Nf3 {[%clk 0:03:00]}  d5 {[%clk 0:02:52]} 2. c4 {[%clk 0:03:01]}  d4 {[%clk 0:02:50]} 3. e3 {[%clk 0:03:02]}  Nc6 {[%clk 0:02:49]} 4. b4 {[%clk 0:03:02]}  dxe3 {[%clk 0:02:33]} 5. fxe3 {[%clk 0:03:00]}  Nxb4 {[%clk 0:02:33]} 6. d4 {[%clk 0:02:58]}  e5 {[%clk 0:02:21]} 7. Nc3 {[%clk 0:02:57]}  Bf5 {[%clk 0:02:20]} 8. Nxe5 {[%clk 0:02:51]}  Nc2+ {[%clk 0:02:18]} 9. Kf2 {[%clk 0:02:47]}  Nxa1 {[%clk 0:02:15]} 10. Qf3 {[%clk 0:02:45]}  Nh6 {[%clk 0:02:08]} 11. Qxb7 {[%clk 0:02:42]}  Bd6 {[%clk 0:02:04]} 12. Nc6 {[%clk 0:02:42]}  Qc8 {[%clk 0:01:47]} 13. Qb2 {[%clk 0:02:40]}  Nc2 {[%clk 0:01:43]} 14. c5 {[%clk 0:02:40]}  Ng4+ {[%clk 0:01:36]} 15. Kg1 {[%clk 0:02:36]}  Bxh2+ {[%clk 0:01:07]} 16. Rxh2 {[%clk 0:02:33]}  Nxh2 {[%clk 0:01:08]} 17. Bb5 {[%clk 0:02:30]}  Kf8 {[%clk 0:00:52]} 18. Kxh2 {[%clk 0:02:20]}  Qe6 {[%clk 0:00:52]} 19. Ne5 {[%clk 0:02:17]}  Rb8 {[%clk 0:00:35]} 20. Nd7+ {[%clk 0:02:10]}  Qxd7 {[%clk 0:00:35]} 21. Bxd7 {[%clk 0:02:07]}  Rxb2 {[%clk 0:00:35]} 22. Bxb2 {[%clk 0:02:05]}  Bxd7 {[%clk 0:00:35]} 0-1


[Site "https://www.chess.com"]